bitfinex/quotes_ETHUSD_20240824
["timestamp","ask_amount","ask_price","bid_price","bid_amount"]
[1724485471183,3.61627,2765.3,2764.9,0.55]
[1724485472452,3.61627,2765.3,2764.9,1.33230954]
[1724485477306,3.61627,2765.3,2765.0,2.3869]
[1724485479487,3.61627,2765.3,2764.9,0.55]
[1724485479872,7.2326,2765.3,2764.9,0.55]
[1724485480073,3.61627,2765.3,2764.9,0.55]
[1724485481108,7.23264,2765.3,2764.9,0.55]
[1724485481409,7.23259,2765.3,2764.9,0.55]
[1724485482106,3.61637,2765.2,2764.9,0.55]
[1724485483075,7.23259,2765.3,2764.9,0.55]
[1724485484320,3.61627,2765.3,2764.9,0.55]
[1724485485321,7.23261,2765.3,2764.9,0.55]
[1724485485504,4.567701,2765.3,2764.9,0.55]
[1724485485823,4.567701,2765.3,2764.8,2.3869]
[1724485486325,3.61653,2765.1,2764.8,2.3869]
[1724485486521,7.23263,2765.3,2764.8,3.65621545]
[1724485486721,7.23259,2765.3,2764.8,3.65621545]
[1724485487045,7.23259,2765.3,2764.9,2.0606915]
[1724485487244,3.61627,2765.3,2764.9,0.80304674]
[1724485488531,5.88577,2765.3,2764.6,9.19984208]
[1724485488829,5.88577,2765.3,2764.7,3.69423573]
[1724485489027,5.88577,2765.3,2764.8,1.25769429]
[1724485489333,3.61655,2765.1,2764.7,0.55]
[1724485489537,3.61655,2765.1,2764.8,1.25770515]
[1724485489728,3.61655,2765.1,2764.7,0.55]
[1724485490028,3.61655,2765.1,2764.8,1.25770506]
[1724485490220,3.61655,2765.1,2764.7,0.55]
[1724485490397,3.61655,2765.1,2764.8,1.25770503]
[1724485490734,3.61655,2765.1,2764.7,0.55]
[1724485490909,3.61655,2765.1,2764.8,1.25770476]
[1724485491104,3.61655,2765.1,2764.7,0.55]
[1724485491320,3.61655,2765.1,2764.8,1.25770321]
[1724485491522,3.61655,2765.1,2764.7,0.55]
[1724485491699,3.61655,2765.1,2764.8,1.25770228]
[1724485491900,3.61655,2765.1,2764.7,0.55]
[1724485492132,3.61655,2765.1,2764.8,1.25770257]
[1724485492437,3.61655,2765.1,2764.7,0.55]
[1724485492590,3.61655,2765.1,2764.8,1.2577023]
[1724485492790,3.61655,2765.1,2764.7,0.55]
[1724485493022,3.61655,2765.1,2764.8,1.25770334]
[1724485493213,3.61655,2765.1,2764.7,0.55]
[1724485493405,3.61667,2765.0,2764.6,0.75730199]
[1724485493756,5.88582,2765.3,2764.8,3.68951545]
[1724485494200,3.61603,2765.5,2764.8,3.68951545]
[1724485494545,3.61613,2765.4,2764.9,1.2576495]
[1724485494702,3.61613,2765.4,2764.8,7.30633545]
[1724485494899,3.61603,2765.5,2764.9,4.87439419]
[1724485495153,3.61603,2765.5,2764.9,3.61675]
[1724485495357,3.61611,2765.4,2764.9,3.61675]
[1724485496477,3.61611,2765.4,2765.0,0.55]
[1724485498239,5.88574,2765.3,2764.6,2.4202]
[1724485498424,3.61664,2765.0,2764.7,1.25776675]
[1724485498625,5.88639,2764.9,2764.5,0.75730199]
[1724485498840,5.88639,2764.9,2764.3,1.13599464]
[1724485498841,3.61699,2764.8,2764.3,0.75730199]
[1724485499049,3.61699,2764.8,2764.4,1.25787869]
[1724485499238,5.88639,2764.9,2764.2,8.06446744]
[1724485499438,9.50325,2764.9,2764.3,3.14474111]
[1724485499639,5.88637,2764.9,2764.4,1.25787658]
[1724485499836,9.50325,2764.9,2764.2,8.06446744]
[1724485500052,9.50325,2764.9,2764.3,3.6947]
[1724485500260,5.88637,2764.9,2764.3,0.55]
[1724485500462,5.88637,2764.9,2764.4,1.25789769]
[1724485500734,3.61776,2764.2,2763.7,0.75730199]
[1724485500930,3.61776,2764.2,2763.8,3.1453129]
[1724485501230,3.61751,2764.4,2763.7,6.77483231]
[1724485501465,7.23505,2764.4,2763.7,6.77483231]
[1724485501830,7.23505,2764.4,2763.7,4.88764545]
[1724485502038,3.61751,2764.4,2763.8,1.25810789]
[1724485502242,3.61751,2764.4,2763.7,7.9431631]
[1724485502446,3.61751,2764.4,2763.8,4.87625721]
[1724485502645,3.61751,2764.4,2763.8,3.61819]
[1724485507484,3.61751,2764.4,2763.8,3.61812]
[1724485507876,3.61751,2764.4,2763.8,7.23624]
[1724485508451,3.61751,2764.4,2763.8,3.61812]
[1724485511748,3.61751,2764.4,2763.8,7.23624]
[1724485511953,3.61751,2764.4,2763.8,3.61812]
[1724485512650,3.61751,2764.4,2763.8,3.61811]
[1724485513848,8.50433545,2764.4,2763.8,3.61811]
[1724485514055,8.50433545,2764.4,2763.6,6.03859]
[1724485514056,2.4569,2764.2,2763.6,6.03856]
[1724485514357,2.4569,2764.2,2763.7,4.16823]
[1724485515250,2.4569,2764.2,2763.8,3.6182]
[1724485518851,2.4569,2764.2,2763.7,4.16832]
[1724485519078,2.4569,2764.2,2763.8,3.6182]
[1724485519397,2.4569,2764.2,2763.7,4.16824]
[1724485520992,3.61784,2764.1,2763.4,6.05815]
[1724485521195,2.4569,2763.9,2763.5,0.55]
[1724485521502,6.07498,2763.9,2763.2,3.61888]
[1724485521671,6.07498,2763.9,2763.3,4.35108955]
[1724485521672,3.61821,2763.8,2763.3,4.35108955]
[1724485521867,3.61821,2763.8,2763.3,3.61885]
[1724485522258,2.4569,2763.9,2763.3,3.61877]
[1724485522459,6.07497,2763.9,2763.4,3.61871]
[1724485523168,6.07497,2763.9,2763.3,4.88808545]
[1724485523611,6.07497,2763.9,2763.3,8.50686545]
[1724485523757,6.07497,2763.9,2763.3,9.600972]
[1724485523957,6.07497,2763.9,2763.4,3.61867]
[1724485524500,2.4569,2763.9,2763.4,3.61867]
[1724485526397,6.07498,2763.9,2763.4,3.61867]
[1724485527187,2.4569,2763.9,2763.4,3.61867]
[1724485528945,2.4569,2763.9,2763.4,3.3942862]
[1724485529104,9.7997,2764.2,2763.7,3.61832]
[1724485530989,9.7997,2764.2,2763.7,4.88763545]
[1724485532121,9.7997,2764.2,2763.8,0.06292765]
[1724485532322,13.41745,2764.2,2763.8,0.06292765]
[1724485532532,13.41745,2764.2,2763.7,1.26931545]
[1724485532803,3.61781,2764.1,2763.9,0.06189107]
[1724485533072,3.61781,2764.1,2764.0,0.06185332]
[1724485533353,13.41738,2764.2,2764.0,0.06185332]
[1724485533644,13.41738,2764.2,2764.1,0.06181558]
[1724485534006,13.41738,2764.2,2763.7,3.61832]
[1724485534207,9.7997,2764.2,2764.1,0.06181558]
[1724485534524,2.3497,2764.2,2763.7,8.076969]
[1724485534709,2.3497,2764.2,2764.1,0.06181558]
[1724485534909,2.3497,2764.2,2763.7,8.076969]
[1724485535120,2.3497,2764.2,2764.1,0.06180581]
[1724485535744,4.576149,2764.2,2763.5,0.55]
[1724485536078,6.06425,2764.0,2763.4,0.55]
[1724485536225,6.06425,2764.0,2763.4,4.16865]
[1724485536439,6.06425,2764.0,2763.5,0.90567255]
[1724485536611,6.06425,2764.0,2763.5,4.52425255]
[1724485536954,2.4463,2764.0,2763.5,4.52425255]
[1724485537853,2.4463,2764.0,2763.6,0.06199457]
[1724485540053,3.61768,2764.2,2763.6,0.06199457]
[1724485540278,3.61768,2764.2,2763.6,2.34579457]
[1724485540468,6.06386,2764.3,2763.6,2.85941328]
[1724485541380,6.06386,2764.3,2763.7,3.61825]
[1724485541875,6.06386,2764.3,2763.8,0.06191906]
[1724485542241,6.06386,2764.3,2763.7,3.61825]
[1724485542442,6.06386,2764.3,2763.9,0.06188131]
[1724485542638,6.06386,2764.3,2763.8,0.06191906]
[1724485542875,6.06386,2764.3,2764.0,0.06184356]
[1724485543103,8.20392455,2764.3,2763.9,0.06188131]
[1724485543251,8.20392455,2764.3,2764.1,0.06180581]
[1724485543574,8.20392455,2764.3,2764.2,0.06176807]
[1724485543761,8.20392455,2764.3,2763.7,3.61825]
[1724485543981,6.06386,2764.3,2763.7,3.61825]
[1724485544282,6.06386,2764.3,2763.8,0.06191906]
[1724485544640,6.06386,2764.3,2763.7,3.61825]
[1724485544840,6.06386,2764.3,2763.9,0.06188131]
[1724485545046,6.06386,2764.3,2763.8,0.06191906]
[1724485545278,6.06386,2764.3,2764.0,0.06184356]
[1724485545470,8.20392455,2764.3,2763.9,0.06175671]
[1724485545639,8.20392455,2764.3,2764.1,0.06168121]
[1724485545843,8.20392455,2764.3,2764.0,0.06171896]
[1724485546138,8.20392455,2764.3,2764.1,0.06168121]
[1724485546344,8.20392455,2764.3,2763.7,3.61825]
[1724485546553,6.06386,2764.3,2763.7,3.61825]
[1724485546762,9.07795,2764.5,2763.9,3.61797]
[1724485547279,9.07795,2764.5,2764.0,0.06171896]
[1724485547695,3.61744,2764.4,2764.0,0.06171896]
[1724485548778,7.23496,2764.4,2764.0,0.06171896]
[1724485549106,3.61758,2764.3,2763.7,8.50586545]
[1724485549412,3.61758,2764.3,2763.8,0.55]
[1724485549779,3.61758,2764.3,2763.9,0.06175671]
[1724485550396,6.07829,2764.2,2763.9,0.06175671]
[1724485550601,3.61794,2764.0,2763.9,0.06175671]
[1724485550797,7.17510654,2764.0,2763.9,0.06175671]
[1724485551008,3.61811,2763.9,2763.3,6.66491713]
[1724485551216,3.61811,2763.9,2763.4,3.14570846]
[1724485551411,3.61811,2763.9,2763.5,1.25828338]
[1724485551630,3.61811,2763.9,2763.4,3.61872]
[1724485551817,3.61811,2763.9,2763.5,3.69565226]
[1724485552014,3.61811,2763.9,2763.6,1.25823792]
[1724485552325,3.61811,2763.9,2763.5,0.55]
[1724485552485,2.4606,2764.0,2763.6,1.25823818]
[1724485552823,2.4606,2764.0,2763.5,4.16857]
[1724485553067,2.4606,2764.0,2763.7,0.06183221]
[1724485553342,2.4606,2764.0,2763.6,0.06186997]
[1724485553565,2.4606,2764.0,2763.8,0.06179446]
[1724485553852,2.4606,2764.0,2763.9,0.06175671]
[1724485554004,2.4606,2764.0,2763.5,4.16852]
[1724485554336,2.4606,2764.0,2763.6,0.06186997]
[1724485563139,2.4606,2764.0,2763.6,3.68030997]
[1724485563337,2.4606,2764.0,2763.7,1.25821062]
[1724485563631,2.4606,2764.0,2763.7,0.06173681]
[1724485570060,2.4606,2764.0,2763.7,0.06173681]
[1724485586910,3.19537255,2764.0,2763.7,0.06173681]
[1724485587048,3.19537255,2764.0,2763.5,4.92623713]
[1724485587248,2.4606,2764.0,2763.6,3.20724069]
[1724485587566,2.4606,2764.0,2763.6,0.06155944]
[1724485590256,2.4606,2764.0,2763.7,1.25826161]
[1724485590458,2.4606,2764.0,2763.6,0.06155944]
[1724485590695,2.4606,2764.0,2763.8,0.06148393]
[1724485590908,2.4606,2764.0,2763.7,0.06152168]
[1724485591113,2.4606,2764.0,2763.5,4.92623713]
[1724485591261,2.4606,2764.0,2763.8,0.06148393]
[1724485591456,2.4606,2764.0,2763.5,4.92623713]
[1724485591662,2.4606,2764.0,2763.6,3.20721359]
[1724485591903,2.4606,2764.0,2763.7,1.25826166]
[1724485592136,2.4606,2764.0,2763.7,0.06152168]
[1724485592405,2.4606,2764.0,2763.6,3.61843]
[1724485592696,2.4606,2764.0,2763.8,0.06148393]
[1724485593098,9.7559,2764.3,2763.9,0.06133617]
[1724485593400,9.7559,2764.3,2763.8,3.61808]
[1724485593618,9.7559,2764.3,2764.0,0.06129842]
[1724485593802,9.7559,2764.3,2763.9,0.06133617]
[1724485593969,2.3059,2764.3,2764.1,0.06126068]
[1724485594171,2.3059,2764.3,2764.0,1.25808021]
[1724485594172,2.3059,2764.3,2764.0,0.06129842]
[1724485594408,2.3059,2764.3,2764.0,3.61792]
[1724485594606,2.3059,2764.3,2764.1,0.06126068]
[1724485596285,2.3059,2764.3,2764.2,0.06122293]
[1724485596468,2.3059,2764.3,2763.9,3.61806]
[1724485596659,2.3059,2764.3,2764.0,2.1187598]
[1724485596864,2.3059,2764.3,2764.0,0.06129842]
[1724485597064,2.3059,2764.3,2763.8,4.37572713]
[1724485597277,2.3059,2764.3,2763.9,3.75655612]
[1724485597608,2.3059,2764.3,2763.9,0.61133617]
[1724485599176,2.3059,2764.6,2764.1,1.26931545]
[1724485599383,11.06705,2764.7,2764.3,3.62701545]
[1724485599384,7.45,2764.7,2764.3,3.62701545]
[1724485599590,2.3059,2764.8,2764.3,3.62701545]
[1724485599977,2.3059,2764.8,2764.4,0.06107443]
[1724485601780,5.92282,2764.8,2764.4,0.06107443]
[1724485602182,5.92282,2764.8,2764.2,3.6176]
[1724485602369,5.92282,2764.8,2764.5,0.05871681]
[1724485602771,5.92282,2764.8,2764.3,0.55]
[1724485603069,3.61702,2764.7,2764.3,0.55]
[1724485603269,3.61702,2764.7,2764.4,0.05875455]
[1724485611615,6.01059,2764.5,2764.4,0.05875455]
[1724485611840,10.590654,2764.5,2764.4,0.05875455]
[1724485612011,3.6176,2764.3,2763.8,3.61819]
[1724485612208,3.6176,2764.3,2763.9,0.55]
[1724485612413,3.6176,2764.3,2763.9,0.60883327]
[1724485613846,2.3933,2764.3,2763.9,0.05883327]
[1724485614040,3.97944,2764.2,2763.9,0.05883327]
[1724485614244,3.61768,2764.2,2763.7,2.4914]
[1724485614551,3.61768,2764.2,2763.8,0.55]
[1724485614719,3.61768,2764.2,2763.8,0.05887102]
[1724485614912,3.61768,2764.2,2763.7,6.10973]
[1724485615114,3.61768,2764.2,2763.9,0.05883327]
[1724485615314,3.61768,2764.2,2763.7,6.10973]
[1724485615582,2.3933,2764.3,2764.0,0.05879552]
[1724485615854,2.3933,2764.3,2763.7,6.10973]
[1724485616001,2.3933,2764.3,2764.1,0.05875777]
[1724485616202,2.3933,2764.3,2763.8,0.55]
[1724485616404,3.61743,2764.4,2764.2,0.05872003]
[1724485616604,3.61743,2764.4,2763.8,5.43745545]
[1724485616864,3.61743,2764.4,2764.3,0.05865989]
[1724485617350,3.61743,2764.4,2763.8,5.43745545]
[1724485617558,3.61743,2764.4,2764.3,0.05865989]
[1724485617861,3.61743,2764.4,2763.8,5.43745545]
[1724485618010,3.61743,2764.4,2764.3,0.05865989]
[1724485618205,4.580226,2764.4,2763.8,5.43745545]
[1724485618448,3.61743,2764.4,2764.3,0.05865989]
[1724485618606,3.61743,2764.4,2763.8,5.43745545]
[1724485619101,3.61743,2764.4,2763.9,0.05881087]
[1724485621352,3.61743,2764.4,2763.9,3.67686087]
[1724485622037,3.61743,2764.4,2763.9,0.05881087]
[1724485622242,4.70715755,2764.4,2763.9,0.05881087]
[1724485622912,3.61743,2764.4,2763.9,3.67684087]
[1724485623118,2.3123,2764.7,2764.1,3.61769]
[1724485623336,9.7623,2764.9,2764.2,1.81931545]
[1724485623534,9.7623,2764.9,2764.4,3.61734]
[1724485624022,9.7623,2764.9,2764.5,0.05838485]
[1724485625446,13.37914,2764.9,2764.5,0.05838485]
[1724485625646,16.299724,2764.9,2764.5,0.05838485]
[1724485625967,16.299724,2764.9,2764.6,0.05834712]
[1724485626134,16.299724,2764.9,2764.3,6.02532]
[1724485626337,16.299724,2764.9,2764.7,0.05830939]
[1724485626545,16.299724,2764.9,2764.3,6.02532]
[1724485626746,8.849724,2764.9,2764.8,0.05827166]
[1724485626946,3.61705,2764.7,2764.2,0.55]
[1724485627538,3.61705,2764.7,2764.2,4.16767]
[1724485627739,3.61705,2764.7,2764.3,0.05834352]
[1724485628067,3.61705,2764.7,2764.2,4.16767]
[1724485628361,3.61705,2764.7,2764.3,0.05823352]
[1724485628564,3.61705,2764.7,2764.2,4.16767]
[1724485628719,3.61705,2764.7,2764.4,0.05819578]
[1724485628922,3.61705,2764.7,2764.2,4.16767]
[1724485629267,3.61705,2764.7,2764.5,0.05815805]
[1724485629439,3.61705,2764.7,2764.2,4.16767]
[1724485629621,3.61705,2764.7,2764.6,0.05812032]
[1724485630137,4.571669,2764.7,2764.2,0.55]
[1724485630337,3.61705,2764.7,2764.6,0.05812032]
[1724485630563,3.61705,2764.7,2764.2,0.55]
[1724485630800,3.61705,2764.7,2764.6,0.05812032]
[1724485630968,3.61705,2764.7,2764.2,0.55]
[1724485631151,3.61731,2764.5,2764.1,2.4078]
[1724485632459,3.61731,2764.5,2764.1,3.32599946]
[1724485633754,3.61731,2764.5,2764.1,2.4078]
[1724485636342,3.61731,2764.5,2764.0,5.50484169]
[1724485636546,3.61731,2764.5,2764.1,0.55]
[1724485638083,3.61762,2764.3,2763.7,0.75764713]
[1724485638344,0.71992355,2764.2,2763.8,3.1452138]
[1724485638503,7.2353,2764.3,2763.9,1.25808552]
[1724485638702,3.61762,2764.3,2763.8,1.8872179]
[1724485639008,3.61762,2764.3,2763.9,1.25813208]
[1724485639154,3.61762,2764.3,2763.8,5.50537588]
[1724485639358,3.61762,2764.3,2763.9,1.25812813]
[1724485639584,3.61762,2764.3,2763.8,4.88749545]
[1724485639798,3.61762,2764.3,2763.9,1.25812609]
[1724485639998,3.61762,2764.3,2763.8,5.92749478]
[1724485640168,3.61762,2764.3,2763.9,1.25813719]
[1724485640377,3.61762,2764.3,2763.8,5.92749478]
[1724485640559,3.61762,2764.3,2763.9,1.2581415]
[1724485640760,2.3123,2764.4,2763.8,5.92743478]
[1724485640980,2.3123,2764.4,2763.9,1.92664413]
[1724485641313,5.92979,2764.4,2763.9,0.66850819]
[1724485642792,5.92979,2764.4,2764.0,0.05739328]
[1724485642997,2.3123,2764.4,2764.0,0.05739328]
[1724485644250,3.61736,2764.5,2764.0,0.05739328]
[1724485644392,9.8228,2764.6,2764.1,3.98526233]
[1724485644591,9.8228,2764.6,2764.1,7.66034786]
[1724485644791,9.8228,2764.6,2764.2,3.61767]
[1724485645022,9.8228,2764.6,2764.2,3.67498779]
[1724485647115,9.8228,2764.6,2764.2,0.05731779]
[1724485647505,2.3728,2764.6,2764.2,0.05731779]
[1724485648002,3.61731,2764.5,2764.2,0.05731779]
[1724485648194,3.61731,2764.5,2764.0,2.3119]
[1724485648390,3.61731,2764.5,2764.3,0.05728005]
[1724485648719,3.61731,2764.5,2764.0,2.3119]
[1724485648923,3.61731,2764.5,2764.1,0.05735553]
[1724485649715,7.23422,2764.7,2764.1,4.63566908]
[1724485650130,3.61716,2764.6,2764.1,4.63566908]
[1724485650338,14.70894545,2764.9,2764.1,4.63559908]
[1724485650520,14.70894545,2764.9,2764.4,3.61742]
[1724485650521,11.06683,2764.9,2764.4,3.61742]
[1724485650827,11.06683,2764.9,2764.5,0.05719971]
[1724485651230,11.06683,2764.9,2764.3,7.23492]
[1724485651399,11.06683,2764.9,2764.6,0.05716198]
[1724485651733,14.68368,2764.9,2764.7,0.05712425]
[1724485651928,11.06683,2764.9,2764.7,0.05712425]
[1724485652232,14.68368,2764.9,2764.3,3.61746]
[1724485652698,14.68368,2764.9,2764.4,0.05723744]
[1724485652898,11.06683,2764.9,2764.4,0.05723744]
[1724485653100,14.68368,2764.9,2764.4,0.05723744]
[1724485653295,7.45,2765.2,2764.8,1.26931545]
[1724485653499,3.61629,2765.3,2764.9,0.05695147]
[1724485653898,7.23264,2765.3,2764.9,2.36885147]
[1724485654426,3.61638,2765.2,2764.9,2.36885147]
[1724485654633,3.61638,2765.2,2764.9,0.05695147]
[1724485655161,3.61638,2765.2,2765.0,0.05691375]
[1724485655371,3.61638,2765.2,2764.7,5.92883]
[1724485655573,3.61638,2765.2,2765.1,0.05687603]
[1724485655876,4.339647,2765.2,2764.7,5.92883]
[1724485656024,3.61638,2765.2,2765.1,0.05687603]
[1724485656206,3.61638,2765.2,2764.7,5.92883]
[1724485656407,3.61638,2765.2,2765.1,0.05687603]
[1724485656610,3.61638,2765.2,2764.7,5.92883]
[1724485656846,3.61638,2765.2,2765.1,0.05687603]
[1724485657045,3.61638,2765.2,2764.7,5.92883]
[1724485657258,3.61638,2765.2,2765.1,0.05687603]
[1724485657411,3.61638,2765.2,2764.7,2.3119]
[1724485658066,3.61638,2765.2,2764.8,0.05698919]
[1724485658417,3.61638,2765.2,2764.7,2.3119]
[1724485658709,3.61638,2765.2,2764.8,0.05698919]
[1724485658915,3.61638,2765.2,2764.7,2.3119]
[1724485659124,3.61638,2765.2,2764.8,0.05698919]
[1724485659416,3.61638,2765.2,2764.7,2.3119]
[1724485659617,3.61638,2765.2,2764.9,0.05695147]
[1724485659927,3.61638,2765.2,2765.0,0.05691375]
[1724485660139,3.61638,2765.2,2764.7,2.3119]
[1724485660344,3.61638,2765.2,2765.1,0.05687603]
[1724485660548,3.61654,2765.1,2764.6,3.61711]
[1724485660755,3.61654,2765.1,2764.7,0.60678362]
[1724485661936,4.88585545,2765.1,2764.7,0.60678362]
[1724485662265,3.61654,2765.1,2764.7,0.60678362]
[1724485666544,5.88509,2765.3,2764.7,0.60678362]
[1724485666865,3.61637,2765.2,2764.7,0.60678362]
[1724485667047,3.61629,2765.3,2764.8,2.4683]
[1724485667436,3.61629,2765.3,2764.9,0.05459917]
[1724485667934,7.23263,2765.3,2764.9,0.05459917]
[1724485670632,7.23262,2765.3,2764.9,0.05459917]
[1724485675069,13.33486,2765.5,2764.9,0.05459917]
[1724485675364,16.95096,2765.5,2764.9,3.61668]
[1724485675550,3.61612,2765.4,2765.0,0.05270063]
[1724485676678,3.61612,2765.4,2764.8,6.08517]
[1724485676848,3.61612,2765.4,2765.1,0.05266291]
[1724485677049,3.61612,2765.4,2764.9,0.55]
[1724485677284,3.61624,2765.3,2765.2,0.05262519]
[1724485677485,3.61624,2765.3,2764.9,0.55]
[1724485677980,3.61624,2765.3,2765.0,0.05270063]
[1724485680266,5.6143233,2765.3,2765.0,0.05270063]
[1724485680558,3.6165,2765.1,2764.6,2.4683]
[1724485680751,3.6165,2765.1,2764.7,0.6028138]
[1724485683720,7.23338,2765.0,2764.7,0.0528138]
[1724485683891,3.61689,2764.8,2764.7,0.0528138]
[1724485684301,3.61689,2764.8,2764.4,3.59871545]
[1724485684501,3.61689,2764.8,2764.7,0.0528138]
[1724485684702,3.61689,2764.8,2764.4,3.59871545]
[1724485684900,3.61689,2764.8,2764.7,0.0528138]
[1724485685096,3.61689,2764.8,2764.4,3.59871545]
[1724485685607,3.61689,2764.8,2764.5,0.05288927]
[1724485685810,3.61679,2764.9,2764.5,0.05288927]
[1724485686016,4.43974614,2764.9,2764.5,0.05288927]
[1724485686246,5.97185,2764.6,2764.5,0.05288927]
[1724485686399,3.61731,2764.5,2764.0,3.61792]
[1724485687821,3.61731,2764.5,2764.1,0.04864662]
[1724485688127,5.97187,2764.6,2764.1,0.04864662]
[1724485689683,3.61712,2764.7,2764.2,2.3294]
[1724485690086,3.61712,2764.7,2764.3,0.04857113]
[1724485690486,3.61712,2764.7,2764.2,2.3294]
[1724485690803,7.23425,2764.7,2764.3,0.0488724]
[1724485691020,3.61686,2764.9,2764.5,2.3294]
[1724485691197,3.0,2765.0,2764.5,2.3294]
[1724485691388,6.61663,2765.0,2764.6,0.04875919]
[1724485694208,10.23336,2765.0,2764.6,0.04875919]
[1724485694793,3.61678,2764.9,2764.6,0.04875919]
[1724485696845,3.61692,2764.8,2764.6,0.04875919]
[1724485697199,3.61702,2764.7,2764.6,0.04875919]
[1724485697531,3.61722,2764.6,2764.1,2.3996]
[1724485698661,3.61722,2764.6,2764.2,0.55]
[1724485701273,2.4146,2764.8,2764.2,0.55]
[1724485701572,2.4146,2764.8,2764.3,0.84542417]
[1724485702390,3.61705,2764.7,2764.3,0.84542417]
[1724485702881,7.23416,2764.7,2764.4,0.04894482]
[1724485703083,3.61715,2764.6,2764.4,0.04894482]
[1724485703457,3.61715,2764.6,2764.2,0.55]
[1724485703658,3.61715,2764.6,2764.5,0.04890709]
[1724485704162,3.61715,2764.6,2764.2,0.55]
[1724485704489,3.61715,2764.6,2764.3,0.04898256]
[1724485704876,3.61715,2764.6,2764.2,0.55]
[1724485705059,3.61715,2764.6,2764.4,0.04894482]
[1724485705263,3.61742,2764.4,2764.3,0.04898256]
[1724485705571,3.61742,2764.4,2763.9,2.2974]
[1724485705789,3.61742,2764.4,2764.0,0.55]
[1724485705972,3.61742,2764.4,2764.1,0.04899973]
[1724485711421,3.61719,2764.6,2764.2,2.2974]
[1724485711619,3.61719,2764.6,2764.2,2.34632642]
[1724485712313,7.23444,2764.6,2764.2,2.34632642]
[1724485713171,3.61744,2764.4,2764.2,0.04892642]
[1724485713376,3.61719,2764.6,2764.2,0.04892642]
[1724485713377,0.73809555,2764.3,2764.2,0.04892642]
[1724485713593,11.06692,2764.8,2764.2,3.66502722]
[1724485713794,11.06692,2764.8,2764.3,2.2974]
[1724485714025,11.06692,2764.8,2764.4,0.04727262]
[1724485715497,14.68393,2764.8,2764.4,0.04727262]
[1724485715694,11.06692,2764.8,2764.4,0.04727262]
[1724485715911,7.23392,2764.8,2764.4,0.04727262]
[1724485717032,3.61707,2764.7,2764.4,0.04727262]
[1724485719464,3.61718,2764.6,2764.4,0.04727262]
[1724485719843,7.23443,2764.6,2764.4,0.04727262]
[1724485720174,3.61718,2764.6,2764.1,2.2974]
[1724485720312,3.61718,2764.6,2764.5,0.04723488]
[1724485721028,7.23443,2764.6,2764.5,0.04723488]
[1724485721254,7.23443,2764.6,2764.2,0.55]
[1724485721463,7.23443,2764.6,2763.9,2.2626]
[1724485721464,3.61758,2764.3,2763.9,2.2626]
[1724485721657,3.61758,2764.3,2764.0,0.55]
[1724485722738,3.61742,2764.4,2764.0,0.55]
[1724485724759,3.61735,2764.5,2764.0,0.55]
[1724485724958,3.61706,2764.7,2764.1,5.88034]
[1724485725314,3.61716,2764.6,2764.2,0.55]
[1724485726525,6.04296,2764.6,2764.2,0.55]
[1724485727904,3.61732,2764.5,2764.2,0.55]
[1724485729450,3.61706,2764.7,2764.2,1.19305]
[1724485729652,3.61706,2764.7,2764.3,2.2626]
[1724485731204,3.61706,2764.7,2764.4,0.55]
[1724485732068,7.45,2764.8,2764.4,0.55]
[1724485732202,11.06691,2764.8,2764.4,0.55]
[1724485732904,11.06691,2764.8,2764.5,0.04707787]
[1724485733252,3.61691,2764.8,2764.5,0.04707787]
[1724485736598,3.61705,2764.7,2764.5,0.04707787]
[1724485738482,3.61683,2764.9,2764.5,0.04707787]
[1724485738483,3.61699,2764.8,2764.5,0.04707787]
[1724485738713,3.61703,2764.7,2764.5,0.04707787]
[1724485744151,3.61715,2764.6,2764.5,0.04707787]
[1724485744886,3.61703,2764.7,2764.5,0.04707787]
[1724485750468,3.61715,2764.6,2764.5,0.04707787]
[1724485750679,4.340417,2764.7,2764.1,3.75271545]
[1724485750680,3.61734,2764.5,2764.1,3.75271545]
[1724485750986,3.61734,2764.5,2764.2,1.25798167]
[1724485751187,3.61734,2764.5,2764.1,3.75271545]
[1724485751393,3.61734,2764.5,2764.2,1.25798072]
[1724485751591,3.61734,2764.5,2764.1,3.75271545]
[1724485751759,3.61734,2764.5,2764.2,1.25800414]
[1724485751961,3.61734,2764.5,2764.1,3.75271545]
[1724485752160,3.61734,2764.5,2764.2,1.25800433]
[1724485752382,3.61734,2764.5,2764.1,3.75271545]
[1724485752562,3.61734,2764.5,2764.2,1.25800223]
[1724485752891,3.61734,2764.5,2764.1,1.26931545]
[1724485753092,3.61734,2764.5,2764.2,1.25801048]
[1724485753295,3.61734,2764.5,2763.9,4.88918615]
[1724485753496,3.61734,2764.5,2764.1,3.69501838]
[1724485753678,3.61734,2764.5,2764.2,1.25800735]
[1724485753881,3.61734,2764.5,2764.1,0.55]
[1724485754195,3.61734,2764.5,2764.2,1.25799819]
[1724485754490,3.61734,2764.5,2764.1,0.55]
[1724485754695,3.61734,2764.5,2764.2,1.2579867]
[1724485754892,3.61734,2764.5,2764.1,0.55]
[1724485755100,3.61734,2764.5,2764.2,1.25800256]
[1724485755306,3.61734,2764.5,2764.1,0.55]
[1724485755473,3.61734,2764.5,2764.2,1.2580024]
[1724485755673,3.61734,2764.5,2764.1,0.55]
[1724485755873,3.61734,2764.5,2764.2,1.25801523]
[1724485756075,3.61734,2764.5,2764.1,0.55]
[1724485757909,5.87587,2764.6,2764.1,0.55]
[1724485759012,2.2587,2764.6,2764.1,4.16781]
[1724485759309,2.2587,2764.6,2764.2,2.11234401]
[1724485759501,2.2587,2764.6,2764.2,0.85432871]
[1724485759813,5.87586,2764.6,2764.2,0.85432871]
[1724485760019,5.87586,2764.6,2764.1,4.16781]
[1724485760175,5.87586,2764.6,2764.2,1.2580231]
[1724485760379,5.87586,2764.6,2764.1,4.16781]
[1724485760875,5.87586,2764.6,2764.2,1.25802098]
[1724485761076,5.87586,2764.6,2764.1,4.16781]
[1724485762920,5.87586,2764.6,2764.2,0.04687049]